lending/lending_fUSD_20240219
["ID","MTS","AMOUNT","RATE_DAILY","PERIOD"]
[314435155,1708344646783,-494.96262592,0.00038,2]
[314435156,1708344646792,-494.96262592,0.00038,2]
[314435157,1708344646802,-494.96262592,0.00038,2]
[314435158,1708344646812,-494.96262592,0.00038,2]
[314435159,1708344646821,-153.23039402,0.00038038,8]
[314435160,1708344646831,-14513.0,0.00038114,2]
[314435161,1708344646840,-606.14,0.00038356,15]
[314435162,1708344646849,-150.0,0.00038356,2]
[314435163,1708344646859,-3943.37143021,0.00038367,2]
[314435164,1708344646868,-1436.34137522,0.00038367,2]
[314435165,1708344646878,-472.85,0.00038442,2]
[314435166,1708344646888,-743.87157666,0.00038552,14]
[314435167,1708344646897,-1269.35309033,0.00038552,14]
[314435168,1708344646907,-546.0,0.0003863,14]
[314435169,1708344646916,-859.88,0.000389,3]
[314435170,1708344646926,-859.88,0.000389,3]
[314435171,1708344646935,-859.88,0.000389,3]
[314435172,1708344646944,-859.88,0.000389,3]
[314435173,1708344646954,-859.88,0.000389,3]
[314435174,1708344646964,-859.88,0.000389,3]
[314435175,1708344646973,-859.88,0.000389,3]
[314435176,1708344646982,-859.88,0.000389,3]
[314435177,1708344646992,-859.88,0.000389,3]
[314435178,1708344647002,-859.88,0.000389,3]
[314435179,1708344647011,-859.88,0.000389,3]
[314435180,1708344647021,-859.88,0.000389,3]
[314435181,1708344647031,-859.88,0.000389,3]
[314435182,1708344647040,-859.88,0.000389,3]
[314435183,1708344647050,-859.88,0.000389,3]
[314435184,1708344647059,-859.88,0.000389,3]
[314435185,1708344647068,-859.88,0.000389,3]
[314435186,1708344647078,-859.88,0.000389,3]
[314435187,1708344647087,-859.88,0.000389,3]
[314435188,1708344647097,-859.88,0.000389,3]
[314435189,1708344647107,-152.83,0.000389,3]
[314435190,1708344647117,-152.83,0.000389,3]
[314435191,1708344647126,-725.52554854,0.00038947,7]
[314435192,1708344647137,-188.03985432,0.00038947,8]
[314435193,1708344647146,-900.0,0.00039,4]
[314435194,1708344647156,-766.56917945,0.00039029,2]
[314435195,1708344647165,-150.0,0.000391,2]
[314435196,1708344647175,-248.4,0.00039112,2]
[314435197,1708344647186,-6070.00221536,0.00039124,3]
[314435198,1708344647197,-180.0,0.00039155,2]
[314435199,1708344647207,-169.48055603,0.000392,2]
[314435200,1708344647217,-157.39480998,0.000392,2]
[314435201,1708344647226,-5000.0,0.000392,3]
[314435202,1708344647236,-434.08904848,0.000392,2]
[314435203,1708344647248,-1843.58031765,0.000392,2]
[314435204,1708344647258,-153.6103224,0.000392,3]
[314435205,1708344647268,-532.62946731,0.000392,2]
[314435206,1708344647278,-904.74132,0.000392,2]
[314435207,1708344647288,-514.32884856,0.000392,2]
[314435208,1708344647298,-640.0,0.0003926,2]
[314435209,1708344647308,-18701.86299392,0.0003927,5]
[314435210,1708344647428,-129659.92715808,0.0003927,5]
[314435211,1708344647437,-222542.685227,0.0003928,5]
[314435212,1708344647447,-250.0,0.00039289,2]
[314435213,1708344647457,-143183.0697923,0.0003929,5]
[314435214,1708344647473,-153540.5105107,0.0003929,5]
[314435215,1708344647483,-46514.35495979,0.000393,2]
[314435216,1708344766213,275.72,0.000252,2]
[314435217,1708344790163,176.85,0.00017621,2]
[314435218,1708345086064,550.0,0.00025,3]
[314435219,1708345320949,175.91,0.00016712,2]
[314435220,1708345591069,-747.7945,0.000269,14]
[314435221,1708345643141,-600.0,0.00027,3]
[314435222,1708345643161,-165.969994,0.000289,2]
[314435223,1708345643182,-650.0,0.00029,3]
[314435224,1708345643203,-159.93945507,0.000309,2]
[314435225,1708345643223,-5675.86554189,0.00030999,2]
[314435226,1708345653125,-744.08298734,0.00030999,2]
[314435227,1708345671327,91246.0,0.00023,2]
[314435228,1708345671358,251568.15695605,0.00023,2]
[314435229,1708345749114,-167.62,0.00028976,2]
[314435230,1708345749133,-7511.36525058,0.00030998,4]
[314435231,1708345749153,-1779.78608607,0.00030999,2]
[314435232,1708345749172,-700.0,0.00031,3]
[314435240,1708345831621,-750.0,0.00033,3]
[314435241,1708345831630,-401.92,0.00034128,2]
[314435242,1708345831639,-415.06708128,0.00035,3]
[314435243,1708345831691,-384.93291872,0.00035,3]
[314435244,1708345831701,-190.33,0.00036082,2]
[314435245,1708345831710,-7511.36525058,0.00036096,4]
[314435246,1708345831720,-516.76,0.00036097,2]
[314435247,1708345831729,-211.73,0.00036203,2]
[314435248,1708345831739,-190.04,0.00036294,2]
[314435249,1708345831749,-178.17,0.00036345,2]
[314435250,1708345831758,-150.0,0.00036366,2]
[314435251,1708345831767,-689.2,0.00036366,2]
[314435252,1708345831777,-401.92,0.00036391,2]
[314435253,1708345831786,-153.15,0.00036438,2]
[314435254,1708345831795,-499.99,0.00036438,2]
[314435255,1708345831805,-300.0,0.00036496,2]
[314435256,1708345831814,-3097.8913,0.00036499,2]
[314435257,1708345831824,-2100.1158,0.00036499,2]
[314435258,1708345831834,-796.7591,0.00036499,2]
[314435259,1708345831843,-9318.326,0.00036499,2]
[314435260,1708345831853,-7293.08783916,0.0003658,2]
[314435261,1708345831862,-35947.83580536,0.00036597,4]
[314435262,1708345831871,-5739.81423071,0.00036597,2]
[314435263,1708345831881,-155.00270266,0.00036598,4]
[314435264,1708345831890,-39520.9697,0.00036599,2]
[314435265,1708345831899,-100000.0,0.00036599,2]
[314435266,1708345831909,-250.0,0.0003668,111]
[314435267,1708345831919,-2242.09585463,0.00036798,2]
[314435268,1708345831928,-483.24,0.00036901,2]
[314435269,1708345831938,-429.0,0.00036965,2]
[314435270,1708345831947,-850.0,0.00037,3]
[314435272,1708345831957,-2242.09585455,0.00037282,2]
[314435274,1708345831966,-3632.71444573,0.00037282,2]
[314435276,1708345831984,-319.24149127,0.00037282,2]
[314435279,1708345831995,-357.46371413,0.00037282,2]
[314435282,1708345832020,-2393.0359926,0.00037282,2]
[314435286,1708345832066,-590.63219536,0.00037282,2]
[314435287,1708345832076,-2803.0,0.000374,30]
[314435288,1708345832085,-152.0,0.00037566,2]
[314435289,1708345832094,-190.33,0.00037725,2]
[314435290,1708345832107,-165.37,0.00037765,2]
[314435291,1708345832117,-148.66780464,0.0003779,10]
[314435292,1708345832130,-439.2241475,0.0003779,10]
[314435293,1708345832139,-360.7818525,0.000378,7]
[314435296,1708345837546,-2049.75,0.000378,7]
[314435297,1708345837825,-32300.29463629,0.000378,7]
[314435322,1708345842563,-171.0,0.00035,2]
[314435323,1708345842572,-12472.9707239,0.000378,7]
[314435324,1708345842586,-2409.67160216,0.000378,7]
[314435326,1708345842731,-3202.27609292,0.000378,7]
[314435327,1708345842757,-138.43081545,0.000378,7]
[314435328,1708345842787,-561.09297933,0.000378,7]
[314435329,1708345842845,-7511.36525058,0.00037799,4]
[314435330,1708345842855,-16799.58874235,0.000378,7]
[314435331,1708345842866,-11955.20439353,0.000378,7]
[314435332,1708345842877,-1321.86465,0.000378,7]
[314435333,1708345842889,-13833.184442,0.000378,7]
[314435386,1708345845573,-35151.69206126,0.000378,7]
[314435387,1708345845582,-2242.09585455,0.00037984,2]
[314435388,1708345845593,-7293.08783909,0.00037984,2]
[314435389,1708345845602,-592.0,0.00038,2]
[314435390,1708345845611,-513.99,0.00038054,2]
[314435391,1708345845620,-660.07,0.00038356,15]
[314435392,1708345845629,-150.0,0.00038356,2]
[314435393,1708345845638,-392.52252614,0.00038552,14]
[314435394,1708345845647,-305.23057163,0.00038552,14]
[314435395,1708345845656,-592.0,0.0003863,14]
[314435396,1708345845665,-401.92,0.00038655,2]
[314435397,1708345845674,-2242.09585455,0.00038687,2]
[314435398,1708345845685,-7293.08783909,0.00038687,2]
[314435399,1708345845694,-299.99,0.00038687,120]
[314435400,1708345845703,-1133.08119284,0.00038708,2]
[314435401,1708345845713,-736.09413565,0.0003878,2]
[314435402,1708345845722,-531.97518779,0.0003878,2]
[314435403,1708345845732,-243.49394943,0.000388,2]
[314435404,1708345845741,-2057.62183249,0.0003886,10]
[314435405,1708345845750,-166.80668219,0.0003886,2]
[314435406,1708345845759,-77209.72022072,0.0003887,4]
[314435407,1708345845794,-2215.30857155,0.0003887,4]
[314435408,1708345845864,-360853.27784973,0.0003887,4]
[314435409,1708345845873,-663535.65140009,0.0003888,60]
[314435428,1708346750144,-764.27379872,0.00028976,2]
[314435429,1708346750163,-4272.06173457,0.00028977,2]
[314435430,1708346750183,-1048.09279878,0.00028978,2]
[314435431,1708346750203,-150.0,0.0002898,2]
[314435432,1708346750222,-155.0,0.0002898,2]
[314435433,1708346750241,-10.90662328,0.00028986,2]
[314435434,1708346827102,-1616.44460865,0.00027405,2]
[314435435,1708346852337,-155.0,0.00027403,2]
[314435436,1708346852357,-1048.09279878,0.00027404,2]
[314435437,1708346852376,-2655.61712592,0.00027405,2]
[314435438,1708346852395,-8485.0,0.00027406,2]
[314435439,1708346852414,-789.09337672,0.00028986,2]
[314435440,1708346852631,-200.0,0.00028986,2]
[314435441,1708346852652,-4406.27340393,0.0002899,2]
[314435442,1708346852672,-1067.34537483,0.00028996,2]
[314435443,1708346852693,-764.27379872,0.00028996,2]
[314435444,1708346852720,-35947.83580536,0.00028998,4]
[314435445,1708346852739,-47440.14127166,0.00029,4]
[314435451,1708346896235,550.0,0.00025,3]
[314435453,1708346949134,-600.0,0.00027,3]
[314435454,1708346949155,-157.09490966,0.00028899,2]
[314435455,1708346949173,-1663.14491933,0.00028999,2]
[314435456,1708346950094,-2608.91681524,0.00028999,2]
[314435457,1708346950114,-155.0,0.00028999,2]
[314435458,1708346950133,-150.0,0.00028999,2]
[314435459,1708346950155,-19270.86918476,0.00029,4]
[314435460,1708346957097,-12975.08736648,0.00029,4]
[314435461,1708346962079,-6678.88396996,0.00029,4]
[314435462,1708346964099,-1402.31856012,0.00029,4]
[314435463,1708346966173,-18068.56871302,0.00029,4]
[314435464,1708346966193,-650.0,0.00029,3]
[314435465,1708346966213,-349.84077499,0.00029999,2]
[314435466,1708346966232,-7712.91087102,0.0003,4]
[314435467,1708346966252,-41610.81385974,0.0003,2]
[314435470,1708346974082,-4272.06173457,0.00029999,2]
[314435471,1708346974104,-4815.4853429,0.0003,2]
[314435472,1708346974123,-2256.96,0.0003,2]
[314435473,1708346974141,-447.77,0.0003,2]
[314435474,1708346974163,-157.09490962,0.0003081,2]
[314435475,1708346974182,-700.0,0.00031,3]
[314435499,1708347031840,-210.0,0.00031899,3]
[314435500,1708347031853,-1253.68009397,0.00032,2]
[314435501,1708347031897,-1772.1881162,0.00032,2]
[314435502,1708347031960,-6974.13178983,0.00032,2]
[314435503,1708347031969,-4132.08,0.00032159,2]
[314435504,1708347031979,-2000.0,0.00032572,2]
[314435505,1708347031988,-877.78,0.00032572,2]
[314435506,1708347031997,-157.09490962,0.0003272,2]
[314435507,1708347032007,-264.9,0.00032775,2]
[314435508,1708347032017,-134.21550055,0.000329,2]
[314435589,1708347037861,-6011.89670334,0.000329,2]
[314435590,1708347037871,-7712.91087102,0.00032971,4]
[314435591,1708347037881,-25163.48506375,0.00032972,4]
[314435592,1708347037891,-5739.81423071,0.00032973,2]
[314435593,1708347037900,-23900.0,0.00032974,2]
[314435594,1708347037909,-750.0,0.00033,3]
[314435595,1708347037918,-10000.0,0.00033,2]
[314435596,1708347037927,-284.07,0.00033037,2]
[314435597,1708347037937,-492.22,0.00033046,2]
[314435598,1708347037946,-250.0,0.00033114,2]
[314435599,1708347037956,-180.58,0.00033133,2]
[314435600,1708347037965,-163.97,0.00033141,2]
[314435601,1708347037974,-1734.0,0.000333,2]
[314435602,1708347037983,-11405.0,0.000333,2]
[314435603,1708347037993,-1259.98996334,0.00033465,2]
[314435604,1708347038002,-10000.0,0.00033691,37]
[314435605,1708347038011,-228.59647435,0.00033928,7]
[314435606,1708347038020,-324.47,0.00033969,2]
[314435607,1708347038029,-319.27,0.00033969,2]
[314435608,1708347038038,-167.0,0.0003399,2]
[314435609,1708347038050,-10000.0,0.00034,2]
[314435610,1708347038059,-2136.93242257,0.0003452,2]
[314435611,1708347038333,-12072.67404043,0.0003452,2]
[314435612,1708347038342,-157.09490962,0.00034631,2]
[314435613,1708347038351,-180.58,0.0003479,2]
[314435614,1708347038360,-21314.409694,0.00034794,2]
[314435615,1708347038370,-28419.212926,0.00034931,2]
[314435616,1708347038379,-800.0,0.00035,3]
[314435617,1708347038388,-10000.0,0.00035,2]
[314435618,1708347038397,-35524.016157,0.00035068,2]
[314435619,1708347038406,-492.22,0.0003531,2]
[314435620,1708347038415,-175.94668382,0.00035332,8]
[314435621,1708347038424,-49733.62262,0.00035342,2]
[314435622,1708347038433,-319.27,0.00035613,2]
[314435623,1708347038442,-1500.0,0.00035616,10]
[314435624,1708347038452,-299.99,0.00035638,30]
[314435625,1708347038461,-226.28,0.0003579,2]
[314435626,1708347038470,-1000.0,0.00035942,2]
[314435627,1708347038479,-206.0,0.00036,2]
[314435628,1708347038489,-10000.0,0.00036,2]
[314435629,1708347038498,-1000.0,0.00036077,2]
[314435630,1708347038507,-267.27,0.00036159,2]
[314435631,1708347038517,-527.84005146,0.00036389,10]
[314435632,1708347038526,-6260.99520788,0.00036389,2]
[314435633,1708347038536,-6260.99520781,0.00036389,2]
[314435634,1708347038545,-6260.99520781,0.00036389,2]
[314435635,1708347038554,-6260.99520781,0.00036389,2]
[314435636,1708347038564,-2177.0637,0.00036399,2]
[314435637,1708347038573,-200.0,0.00036399,2]
[314435638,1708347038582,-345.0,0.00036399,2]
[314435639,1708347038591,-180.58,0.00036447,2]
[314435640,1708347038601,-2428.02526572,0.00036498,2]
[314435641,1708347038610,-760.01,0.00036498,2]
[314435642,1708347038620,-19370.1864,0.00036499,2]
[314435643,1708347038629,-1340.9299,0.00036499,2]
[314435644,1708347038638,-14573.9922,0.00036499,2]
[314435645,1708347038647,-157.09490962,0.00036541,2]
[314435646,1708347038656,-177.17527241,0.00036608,16]
[314435647,1708347038668,-155.12,0.0003671,2]
[314435648,1708347038677,-175.94668382,0.00036788,10]
[314435649,1708347038686,-1794.29464104,0.00036798,2]
[314435650,1708347038696,-1794.29464095,0.00036798,2]
[314435651,1708347038705,-1794.29464095,0.00036798,2]
[314435652,1708347038714,-150.0,0.00036862,2]
[314435653,1708347038723,-693.49,0.000369,2]
[314435654,1708347038733,-150.0,0.00036973,2]
[314435655,1708347038742,-155.12,0.00036993,2]
[314435656,1708347038753,-2000.0,0.00037,2]
[314435657,1708347038762,-6543.95145119,0.00037,7]
[314435658,1708347038771,-850.0,0.00037,3]
[314435659,1708347038781,-10000.0,0.00037,2]
[314435660,1708347038790,-150.0,0.00037102,2]
[314435661,1708347038799,-226.28,0.00037114,2]
[314435662,1708347038809,-319.27,0.00037257,2]
[314435663,1708347038818,-155.12,0.00037275,2]
[314435664,1708347038827,-1794.29464095,0.00037321,2]
[314435665,1708347038836,-6260.99520781,0.0003737,2]
[314435666,1708347038847,-150.0,0.0003749,2]
[314435667,1708347038857,-155.12,0.00037557,2]
[314435668,1708347038866,-492.22,0.00037573,2]
[314435669,1708347038875,-188.0,0.00037593,2]
[314435670,1708347038885,-793.8253,0.000376,2]
[314435671,1708347038893,-1000.0,0.000376,2]
[314435672,1708347038903,-194.79515956,0.000376,2]
[314435673,1708347038912,-150.0,0.00037669,2]
[314435674,1708347038921,-180.0,0.00037671,2]
[314435675,1708347038930,-277.15199195,0.00037698,4]
[314435676,1708347038941,-604.4434975,0.00037699,4]
[314435677,1708347038950,-19525.02908844,0.00037699,2]
[314435678,1708347038959,-109121.2022,0.000377,2]
[314435679,1708347038968,-214.8602,0.000377,2]
[314435680,1708347038977,-795.22339689,0.0003774,2]
[314435681,1708347038986,-221.05152975,0.0003779,2]
[314435682,1708347038995,-150.0,0.00037793,2]
[314435683,1708347039003,-285.18195783,0.00037799,4]
[314435684,1708347039013,-132556.80299169,0.000378,7]
[314435685,1708347039021,-155.12,0.0003784,2]
[314435686,1708347039030,-554.85022029,0.0003787,2]
[314435687,1708347039039,-190.06146536,0.000379,11]
[314435688,1708347039050,-153.61032239,0.000379,2]
[314435689,1708347039059,-426.20287503,0.000379,4]
[314435690,1708347039068,-175252.855512,0.000379,3]
[314435691,1708347039077,-194.79515954,0.0003797,2]
[314435692,1708347039086,-200.0,0.00037987,3]
[314435693,1708347039095,-262879.283267,0.0003799,3]
[314435694,1708347039104,-534589.10266496,0.00038,2]
[314435695,1708347039113,-537.0,0.00038,2]
[314435696,1708347039122,-10000.0,0.00038,2]
[314435697,1708347039131,-1000.0,0.00038038,2]
[314435698,1708347039140,-150.0,0.00038089,2]
[314435699,1708347039149,-155.12,0.00038122,2]
[314435700,1708347039158,-177.53,0.00038178,2]
[314435701,1708347039167,-150.0,0.00038216,2]
[314435702,1708347039176,-1794.29464095,0.00038251,2]
[314435703,1708347039185,-150.0,0.00038284,2]
[314435704,1708347039194,-150.0,0.00038314,2]
[314435705,1708347039203,-150.0,0.00038339,2]
[314435706,1708347039212,-194.79515954,0.00038339,2]
[314435707,1708347039221,-250.0,0.00038356,2]
[314435708,1708347039230,-150.0,0.00038356,2]
[314435709,1708347039239,-593.288585,0.00038356,14]
[314435710,1708347039248,-568.241781,0.00038356,2]
[314435711,1708347039258,-593.288585,0.00038356,14]
[314435712,1708347039267,-568.241781,0.00038356,2]
[314435713,1708347039276,-151.0,0.00038356,14]
[314435714,1708347039286,-268.088978,0.00038356,14]
[314435715,1708347039294,-151.0,0.00038356,14]
[314435716,1708347039303,-151.0,0.00038356,14]
[314435717,1708347039312,-179.922847,0.00038356,14]
[314435718,1708347039321,-185.156721,0.00038356,14]
[314435719,1708347039330,-3411.580301,0.00038356,14]
[314435720,1708347039339,-185.156721,0.00038356,14]
[314435721,1708347039348,-203.414829,0.00038356,14]
[314435722,1708347039357,-3411.580301,0.00038356,14]
[314435723,1708347039369,-203.414829,0.00038356,14]
[314435724,1708347039378,-222.126078,0.00038356,14]
[314435725,1708347039387,-222.126078,0.00038356,14]
[314435726,1708347039395,-151.0,0.00038356,14]
[314435727,1708347039404,-151.0,0.00038356,14]
[314435728,1708347039413,-151.0,0.00038356,14]
[314435729,1708347039425,-151.0,0.00038356,14]
[314435730,1708347039434,-151.0,0.00038356,14]
[314435731,1708347039443,-344.47812,0.00038356,14]
[314435732,1708347039452,-151.0,0.00038356,14]
[314435733,1708347039461,-344.47812,0.00038356,14]
[314435734,1708347039470,-151.0,0.00038356,14]
[314435735,1708347039479,-151.0,0.00038356,14]
[314435736,1708347039489,-151.0,0.00038356,14]
[314435737,1708347039498,-151.0,0.00038356,14]
[314435738,1708347039507,-151.0,0.00038356,7]
[314435739,1708347039516,-151.0,0.00038356,14]
[314435740,1708347039525,-151.0,0.00038356,7]
[314435741,1708347039534,-280.653057,0.00038356,14]
[314435742,1708347039543,-280.653057,0.00038356,14]
[314435743,1708347039552,-151.0,0.00038356,14]
[314435744,1708347039561,-260.78958,0.00038356,14]
[314435745,1708347039571,-260.78958,0.00038356,14]
[314435746,1708347039580,-212.151832,0.00038356,14]
[314435747,1708347039589,-212.151832,0.00038356,14]
[314435748,1708347039599,-7889.030673,0.00038356,14]
[314435749,1708347039608,-151.0,0.00038356,14]
[314435750,1708347039618,-231.527423,0.00038356,14]
[314435751,1708347039628,-151.0,0.00038356,14]
[314435752,1708347039637,-151.0,0.00038356,14]
[314435753,1708347039646,-151.0,0.00038356,14]
[314435754,1708347039655,-231.527423,0.00038356,14]
[314435755,1708347039665,-249.133395,0.00038356,14]
[314435756,1708347039674,-249.133395,0.00038356,14]
[314435757,1708347039684,-178.217037,0.00038356,14]
[314435758,1708347039693,-178.217037,0.00038356,14]
[314435759,1708347039702,-151.0,0.00038356,7]
[314435760,1708347039712,-151.0,0.00038356,14]
[314435761,1708347039721,-151.0,0.00038356,14]
[314435762,1708347039730,-151.0,0.00038356,14]
[314435763,1708347039739,-187.109252,0.00038356,14]
[314435764,1708347039748,-187.109252,0.00038356,14]
[314435765,1708347039757,-384.108791,0.00038356,14]
[314435766,1708347039766,-384.108791,0.00038356,14]
[314435767,1708347039775,-605.06,0.00038356,15]
[314435768,1708347039785,-150.0,0.00038386,2]
[314435769,1708347039794,-155.12,0.00038404,2]
[314435770,1708347039803,-226.28,0.00038439,2]
[314435771,1708347039812,-157.09490962,0.00038452,2]
[314435772,1708347039821,-150.0,0.0003846,2]
[314435773,1708347039830,-1273.44832,0.0003847,2]
[314435774,1708347039839,-6260.99520781,0.00038476,2]
[314435775,1708347039851,-5278.69,0.000385,31]
[314435776,1708347039860,-150.0,0.0003851,2]
[314435777,1708347039871,-1410.76531307,0.0003853,2]
[314435778,1708347039880,-150.0,0.0003854,2]
[314435779,1708347039890,-739.65664452,0.00038552,14]
[314435780,1708347039899,-1184.70617731,0.00038552,14]
[314435781,1708347039909,-1133.0811928,0.00038605,2]
[314435782,1708347039918,-537.0,0.0003863,14]
[314435783,1708347039928,-150.0,0.00038677,2]
[314435784,1708347039937,-150.0,0.00038677,2]
[314435785,1708347039945,-155.12,0.00038687,2]
[314435786,1708347039955,-194.79515954,0.00038709,2]
[314435787,1708347039965,-177.53,0.00038726,2]
[314435788,1708347039974,-410.0,0.0003874,4]
[314435789,1708347039982,-150.0,0.0003874,2]
[314435790,1708347039992,-28021.64862997,0.0003878,2]
[314435791,1708347040001,-1229.0535451,0.0003879,2]
[314435792,1708347040010,-397.46396313,0.000388,3]
[314435793,1708347040019,-783.13881881,0.000388,9]
[314435794,1708347040029,-35576.32678096,0.000388,2]
[314435795,1708347040038,-6215.22734398,0.000388,2]
[314435796,1708347040047,-215.18636219,0.000388,2]
[314435797,1708347040056,-154.63198928,0.000388,7]
[314435798,1708347040065,-211.09365842,0.000388,2]
[314435799,1708347040074,-654.88458712,0.000388,2]
[314435800,1708347040083,-1363.12368248,0.000388,2]
[314435801,1708347040092,-150.0,0.00038807,2]
[314435802,1708347040102,-7191.49327242,0.0003882,5]
[314435803,1708347040111,-221.05152975,0.00038853,2]
[314435804,1708347040121,-87626.4277558,0.00038863,4]
[314435805,1708347040130,-150.0,0.00038864,2]
[314435806,1708347040139,-150.0,0.00038868,2]
[314435807,1708347040149,-10150.2236166,0.00038873,2]
[314435808,1708347040158,-666.0,0.00038879,2]
[314435809,1708347040167,-99464.34859991,0.0003888,60]
[314435810,1708347040177,-335.8452703,0.0003888,5]
[314435811,1708347040186,-2000.0,0.0003888,2]
[314435812,1708347040195,-200.0,0.0003888,2]
[314435813,1708347040204,-87626.4277558,0.0003889,4]
[314435814,1708347040213,-151.0,0.0003889,7]
[314435815,1708347040222,-151.0,0.0003889,14]
[314435816,1708347040231,-151.0,0.0003889,14]
[314435817,1708347040240,-850.605601,0.0003889,14]
[314435818,1708347040249,-850.605601,0.0003889,14]
[314435819,1708347040258,-8217.463275,0.0003889,14]
[314435820,1708347040268,-8217.463275,0.0003889,14]
[314435821,1708347040277,-151.0,0.0003889,14]
[314435822,1708347040287,-151.0,0.0003889,14]
[314435823,1708347040296,-269.949364,0.0003889,14]
[314435824,1708347040305,-295.175101,0.0003889,14]
[314435825,1708347040315,-269.949364,0.0003889,14]
[314435826,1708347040324,-295.175101,0.0003889,14]
[314435827,1708347040333,-299.081297,0.0003889,14]
[314435828,1708347040343,-299.081297,0.0003889,14]
[314435829,1708347040352,-176.920833,0.0003889,14]
[314435830,1708347040361,-176.920833,0.0003889,14]
[314435831,1708347040372,-3147.494371,0.0003889,14]
[314435832,1708347040381,-151.0,0.0003889,14]
[314435833,1708347040391,-151.0,0.0003889,14]
[314435834,1708347040400,-3147.494371,0.0003889,14]
[314435835,1708347040410,-151.0,0.0003889,14]
[314435836,1708347040419,-151.0,0.0003889,14]
[314435837,1708347040428,-178.282845,0.0003889,14]
[314435838,1708347040438,-995.568191,0.0003889,14]
[314435839,1708347040447,-178.282845,0.0003889,14]
[314435840,1708347040456,-853.04846,0.0003889,14]
[314435841,1708347040465,-995.568191,0.0003889,14]
[314435842,1708347040475,-853.04846,0.0003889,14]
[314435843,1708347040484,-270.666828,0.0003889,14]
[314435844,1708347040494,-151.0,0.0003889,3]
[314435845,1708347040503,-270.666828,0.0003889,14]
[314435846,1708347040512,-151.0,0.0003889,14]
[314435847,1708347040521,-151.0,0.0003889,3]
[314435848,1708347040530,-516.8985662,0.0003889,2]
[314435849,1708347040539,-3139.02,0.000389,3]
[314435850,1708347040549,-3139.02,0.000389,3]
[314435851,1708347040559,-3139.02,0.000389,3]
[314435852,1708347040568,-3139.02,0.000389,3]
[314435853,1708347040578,-3139.02,0.000389,3]
[314435854,1708347040587,-3139.02,0.000389,3]
[314435855,1708347040596,-3139.02,0.000389,3]
[314435856,1708347040605,-3139.02,0.000389,3]
[314435857,1708347040616,-3139.02,0.000389,3]
[314435858,1708347040626,-3139.02,0.000389,3]
[314435859,1708347040635,-3139.02,0.000389,3]
[314435860,1708347040645,-3139.02,0.000389,3]
[314435861,1708347040654,-3139.02,0.000389,3]
[314435862,1708347040664,-3139.02,0.000389,3]
[314435863,1708347040673,-3139.02,0.000389,3]
[314435864,1708347040683,-3139.02,0.000389,3]
[314435865,1708347040692,-3139.02,0.000389,3]
[314435866,1708347040701,-3139.02,0.000389,3]
[314435867,1708347040711,-3139.02,0.000389,3]
[314435868,1708347040720,-3139.02,0.000389,3]
[314435869,1708347040729,-151.0,0.000389,14]
[314435870,1708347040739,-151.0,0.000389,14]
[314435871,1708347040748,-344.47812,0.000389,14]
[314435872,1708347040758,-151.0,0.000389,14]
[314435873,1708347040767,-344.47812,0.000389,14]
[314435874,1708347040776,-151.0,0.000389,14]
[314435875,1708347040785,-151.0,0.000389,14]
[314435876,1708347040795,-282.601647,0.000389,14]
[314435877,1708347040804,-151.0,0.000389,14]
[314435878,1708347040813,-151.0,0.000389,7]
[314435879,1708347040822,-151.0,0.000389,14]